bitfinex/quotes_BTCUSD_20230904
["timestamp","ask_amount","ask_price","bid_price","bid_amount"]
[1693794748279,0.75617701,25924.0,25923.0,0.001]
[1693794748490,0.75917701,25924.0,25923.0,0.002]
[1693794748695,0.75917701,25924.0,25923.0,0.02085959]
[1693794754603,0.70917701,25924.0,25923.0,0.02085959]
[1693794758595,0.42648678,25924.0,25923.0,0.02085959]
[1693794768893,0.006,25924.0,25923.0,0.02085959]
[1693794775129,0.006,25924.0,25923.0,0.08853959]
[1693794775282,0.006,25924.0,25923.0,0.08709959]
[1693794775487,0.006,25924.0,25923.0,0.08703959]
[1693794775684,0.006,25924.0,25923.0,0.17923019]
[1693794775971,0.006,25924.0,25923.0,0.08673959]
[1693794776178,0.006,25924.0,25923.0,0.08667959]
[1693794776375,0.006,25924.0,25923.0,0.08715959]
[1693794776575,0.006,25924.0,25923.0,0.08673959]
[1693794776984,0.006,25924.0,25923.0,0.08667959]
[1693794777402,0.006,25924.0,25923.0,0.08583959]
[1693794777614,0.006,25924.0,25923.0,0.02085959]
[1693794778778,0.006,25924.0,25923.0,0.08883959]
[1693794778978,0.006,25924.0,25923.0,0.08721959]
[1693794779321,0.006,25924.0,25923.0,0.08709959]
[1693794779520,0.006,25924.0,25923.0,0.02085959]
[1693794780347,0.006,25924.0,25923.0,0.08577959]
[1693794780528,0.006,25924.0,25923.0,0.08595959]
[1693794780757,0.006,25924.0,25923.0,0.02085959]
[1693794782775,0.006,25924.0,25923.0,0.09021959]
[1693794782979,0.006,25924.0,25923.0,0.09009959]
[1693794783193,0.006,25924.0,25923.0,0.09039959]
[1693794783403,0.006,25924.0,25923.0,0.09027959]
[1693794783608,0.006,25924.0,25923.0,0.09009959]
[1693794783820,0.006,25924.0,25923.0,0.08997959]
[1693794784031,0.006,25924.0,25923.0,0.08973959]
[1693794784237,0.006,25924.0,25923.0,0.08967959]
[1693794784438,0.006,25924.0,25923.0,0.08985959]
[1693794784610,0.006,25924.0,25923.0,0.08955959]
[1693794784818,0.006,25924.0,25923.0,0.08949959]
[1693794785069,0.006,25924.0,25923.0,0.08973959]
[1693794785227,0.006,25924.0,25923.0,0.08961959]
[1693794785438,0.006,25924.0,25923.0,0.08943959]
[1693794785657,0.006,25924.0,25923.0,0.08661959]
[1693794785858,0.006,25924.0,25923.0,0.08655959]
[1693794786393,0.006,25924.0,25923.0,0.08643959]
[1693794786596,0.006,25924.0,25923.0,0.02085959]
[1693794789978,0.006,25924.0,25923.0,0.21085959]
[1693794803128,0.006,25924.0,25923.0,0.30323159]
[1693794803305,0.006,25924.0,25923.0,0.6463776]
[1693794803547,0.006,25924.0,25923.0,1.06278108]
[1693794803755,0.006,25924.0,25923.0,1.05954108]
[1693794803917,0.006,25924.0,25923.0,1.05930108]
[1693794804242,0.006,25924.0,25923.0,1.05750108]
[1693794804475,0.006,25924.0,25923.0,1.06212108]
[1693794804686,0.006,25924.0,25923.0,1.06092108]
[1693794804889,0.006,25924.0,25923.0,1.06212108]
[1693794804999,0.006,25924.0,25923.0,1.06530108]
[1693794805200,0.006,25924.0,25923.0,1.06512108]
[1693794805406,0.006,25924.0,25923.0,1.06812108]
[1693794805622,0.006,25924.0,25923.0,1.06788108]
[1693794805825,0.006,25924.0,25923.0,1.06842108]
[1693794806125,0.006,25924.0,25923.0,1.06824108]
[1693794806334,0.006,25924.0,25923.0,1.06614108]
[1693794806515,0.006,25924.0,25923.0,1.06272108]
[1693794806729,0.006,25924.0,25923.0,1.06344108]
[1693794806905,0.006,25924.0,25923.0,1.06338108]
[1693794807102,0.006,25924.0,25923.0,1.06308108]
[1693794807319,0.006,25924.0,25923.0,1.06290108]
[1693794807507,0.006,25924.0,25923.0,1.06434108]
[1693794807705,0.006,25924.0,25923.0,1.06548108]
[1693794807909,0.006,25924.0,25923.0,1.05630108]
[1693794808231,0.006,25924.0,25923.0,1.04946108]
[1693794808438,0.006,25924.0,25923.0,1.04934108]
[1693794808689,0.006,25924.0,25923.0,1.04898108]
[1693794808868,0.006,25924.0,25923.0,1.04868108]
[1693794808993,0.006,25924.0,25923.0,1.04952108]
[1693794809195,0.006,25924.0,25923.0,1.24265287]
[1693794809395,0.006,25924.0,25923.0,1.23809287]
[1693794809608,0.006,25924.0,25923.0,1.46920289]
[1693794809924,0.006,25924.0,25923.0,1.46938289]
[1693794810135,0.006,25924.0,25923.0,1.46844289]
[1693794810136,0.003,25924.0,25923.0,1.46844289]
[1693794810325,0.003,25924.0,25923.0,1.47350289]
[1693794810530,0.003,25924.0,25923.0,1.46990289]
[1693794810730,0.003,25924.0,25923.0,1.46442289]
[1693794811001,0.01458394,25925.0,25923.0,1.46348289]
[1693794811172,0.01458394,25925.0,25924.0,0.63459572]
[1693794811373,0.01458394,25925.0,25924.0,0.91619572]
[1693794811572,0.01458394,25925.0,25924.0,0.93736546]
[1693794811781,0.01458394,25925.0,25924.0,0.93754546]
[1693794812106,0.01458394,25925.0,25924.0,0.93784546]
[1693794812308,0.01758394,25925.0,25924.0,0.93868546]
[1693794812529,0.01758394,25925.0,25924.0,0.93556546]
[1693794812710,0.01758394,25925.0,25924.0,0.93526546]
[1693794812907,0.01758394,25925.0,25924.0,0.93544546]
[1693794813119,0.01758394,25925.0,25924.0,0.93628546]
[1693794813315,0.01758394,25925.0,25924.0,0.93760546]
[1693794813645,0.01758394,25925.0,25924.0,0.93778546]
[1693794813847,0.02058394,25925.0,25924.0,0.93784546]
[1693794813999,0.02058394,25925.0,25924.0,0.93682546]
[1693794814207,0.02058394,25925.0,25924.0,0.93676546]
[1693794814407,0.02058394,25925.0,25924.0,0.93628546]
[1693794814770,0.02058394,25925.0,25924.0,0.93610546]
[1693794815127,0.02058394,25925.0,25924.0,0.93646546]
[1693794815351,0.02058394,25925.0,25924.0,0.93658546]
[1693794815529,0.02058394,25925.0,25924.0,0.93652546]
[1693794815892,0.02058394,25925.0,25924.0,0.93706546]
[1693794816118,0.02058394,25925.0,25924.0,0.93670546]
[1693794816316,0.02058394,25925.0,25924.0,0.93682546]
[1693794816518,0.02058394,25925.0,25924.0,0.93676546]
[1693794816721,0.02058394,25925.0,25924.0,0.93616546]
[1693794816863,0.02058394,25925.0,25924.0,0.93640546]
[1693794817065,0.02058394,25925.0,25924.0,0.93652546]
[1693794817270,0.02058394,25925.0,25924.0,0.93682546]
[1693794817471,0.02058394,25925.0,25924.0,0.93664546]
[1693794817673,0.02058394,25925.0,25924.0,0.93658546]
[1693794817874,0.02058394,25925.0,25924.0,0.93664546]
[1693794818100,0.02058394,25925.0,25924.0,0.93676546]
[1693794818298,0.02058394,25925.0,25924.0,0.93694546]
[1693794818531,0.01558394,25925.0,25924.0,0.93706546]
[1693794818764,0.01558394,25925.0,25924.0,0.93724546]
[1693794818923,0.01558394,25925.0,25924.0,0.93730546]
[1693794819122,0.01558394,25925.0,25924.0,0.93892546]
[1693794819322,0.01558394,25925.0,25924.0,0.93934546]
[1693794819525,0.01558394,25925.0,25924.0,0.93940546]
[1693794819723,0.01558394,25925.0,25924.0,0.93922546]
[1693794819898,0.01558394,25925.0,25924.0,0.93928546]
[1693794820104,0.01558394,25925.0,25924.0,0.93946546]
[1693794820306,0.01558394,25925.0,25924.0,0.93952546]
[1693794820510,0.01558394,25925.0,25924.0,0.93940546]
[1693794820712,0.01558394,25925.0,25924.0,0.93988546]
[1693794820934,0.01558394,25925.0,25924.0,0.94534546]
[1693794821254,0.01558394,25925.0,25924.0,0.94540546]
[1693794821478,0.01558394,25925.0,25924.0,0.94468546]
[1693794821659,0.01558394,25925.0,25924.0,0.94432546]
[1693794821869,0.01558394,25925.0,25924.0,0.94426546]
[1693794822075,0.01558394,25925.0,25924.0,0.94408546]
[1693794822312,0.01558394,25925.0,25924.0,0.94474546]
[1693794822482,0.01558394,25925.0,25924.0,0.94072546]
[1693794822684,0.01558394,25925.0,25924.0,0.94084546]
[1693794822984,0.01558394,25925.0,25924.0,0.94030546]
[1693794823166,0.01558394,25925.0,25924.0,0.93982546]
[1693794823573,0.01558394,25925.0,25924.0,0.93562546]
[1693794823768,0.01558394,25925.0,25924.0,0.93622546]
[1693794824117,0.01558394,25925.0,25924.0,0.93796546]
[1693794824294,0.01558394,25925.0,25924.0,0.93808546]
[1693794824500,0.01558394,25925.0,25924.0,0.93490546]
[1693794824658,0.01558394,25925.0,25924.0,0.93676546]
[1693794825000,0.01558394,25925.0,25924.0,0.93760546]
[1693794825311,0.01558394,25925.0,25924.0,0.93712546]
[1693794825520,0.01558394,25925.0,25924.0,0.93574546]
[1693794825654,0.01558394,25925.0,25924.0,0.93724546]
[1693794825845,0.01558394,25925.0,25924.0,0.93730546]
[1693794826047,0.01558394,25925.0,25924.0,0.93736546]
[1693794826256,0.01558394,25925.0,25924.0,0.93748546]
[1693794826461,0.01558394,25925.0,25924.0,0.93766546]
[1693794826670,0.01558394,25925.0,25924.0,0.93718546]
[1693794827237,0.01558394,25925.0,25924.0,0.93736546]
[1693794827435,0.01558394,25925.0,25924.0,0.93790546]
[1693794827647,0.01558394,25925.0,25924.0,0.93796546]
[1693794827822,0.01558394,25925.0,25924.0,0.93658546]
[1693794828029,0.01558394,25925.0,25924.0,0.93664546]
[1693794828230,0.01558394,25925.0,25924.0,0.93676546]
[1693794828429,0.01558394,25925.0,25924.0,0.93682546]
[1693794828626,0.01558394,25925.0,25924.0,0.93688546]
[1693794828828,0.01558394,25925.0,25924.0,0.93706546]
[1693794829075,0.01558394,25925.0,25924.0,0.93688546]
[1693794829231,0.01558394,25925.0,25924.0,0.93676546]
[1693794829407,0.01558394,25925.0,25924.0,0.93706546]
[1693794829607,0.01558394,25925.0,25924.0,0.93688546]
[1693794829806,0.01558394,25925.0,25924.0,0.93886546]
[1693794830107,0.01558394,25925.0,25924.0,0.94042546]
[1693794830356,0.01558394,25925.0,25924.0,0.94330546]
[1693794830532,0.01558394,25925.0,25924.0,0.94348546]
[1693794830731,0.01558394,25925.0,25924.0,0.94582546]
[1693794830908,0.01558394,25925.0,25924.0,0.94588546]
[1693794831276,0.01558394,25925.0,25924.0,0.94888546]
[1693794831500,0.01558394,25925.0,25924.0,0.94876546]
[1693794831668,0.01558394,25925.0,25924.0,0.94894546]
[1693794831876,0.01558394,25925.0,25924.0,0.94900546]
[1693794832074,0.01558394,25925.0,25924.0,0.94912546]
[1693794832280,0.01558394,25925.0,25924.0,0.94918546]
[1693794832687,0.01058394,25925.0,25924.0,0.94924546]
[1693794833229,0.01058394,25925.0,25924.0,0.94912546]
[1693794833562,0.01058394,25925.0,25924.0,0.94906546]
[1693794833775,0.01058394,25925.0,25924.0,0.94828546]
[1693794834390,0.01058394,25925.0,25924.0,0.94636546]
[1693794834594,0.01058394,25925.0,25924.0,0.94462546]
[1693794834794,0.01058394,25925.0,25924.0,0.94324546]
[1693794834995,0.01058394,25925.0,25924.0,0.94282546]
[1693794835342,0.01058394,25925.0,25924.0,0.94264546]
[1693794835545,0.01058394,25925.0,25924.0,0.94270546]
[1693794835749,0.01058394,25925.0,25924.0,0.94294546]
[1693794835921,0.01058394,25925.0,25924.0,0.94288546]
[1693794836144,0.01058394,25925.0,25924.0,0.94282546]
[1693794836346,0.01058394,25925.0,25924.0,0.94264546]
[1693794836573,0.01058394,25925.0,25924.0,0.94348546]
[1693794836752,0.01058394,25925.0,25924.0,0.94264546]
[1693794836963,0.01058394,25925.0,25924.0,1.22180802]
[1693794837157,0.01058394,25925.0,25924.0,1.09775578]
[1693794837313,0.01058394,25925.0,25924.0,1.4636258]
[1693794837509,0.01058394,25925.0,25924.0,1.23209578]
[1693794837761,0.01058394,25925.0,25924.0,1.09907578]
[1693794838077,0.01058394,25925.0,25924.0,1.3298858]
[1693794838278,0.00758394,25925.0,25924.0,1.3302458]
[1693794838482,0.00758394,25925.0,25924.0,1.4605058]
[1693794838684,0.00758394,25925.0,25924.0,1.3357258]
[1693794838889,0.00758394,25925.0,25924.0,1.4662258]
[1693794839096,0.00458394,25925.0,25924.0,1.3327258]
[1693794839299,0.00458394,25925.0,25924.0,1.3365858]
[1693794839480,0.00458394,25925.0,25924.0,1.3302658]
[1693794839676,0.00458394,25925.0,25924.0,1.3273858]
[1693794839902,0.00458394,25925.0,25924.0,1.3321458]
[1693794840088,0.00458394,25925.0,25924.0,1.3313658]
[1693794840238,0.00458394,25925.0,25924.0,1.3304058]
[1693794840443,0.00458394,25925.0,25924.0,1.32805279]
[1693794840646,0.00458394,25925.0,25924.0,1.32307279]
[1693794841070,0.00458394,25925.0,25924.0,1.32259279]
[1693794841316,0.00458394,25925.0,25924.0,1.32265279]
[1693794842054,0.00458394,25925.0,25924.0,1.32289279]
[1693794842197,0.00458394,25925.0,25924.0,1.32271279]
[1693794842397,0.00458394,25925.0,25924.0,1.32295279]
[1693794842598,0.00458394,25925.0,25924.0,1.32097279]
[1693794842899,0.00458394,25925.0,25924.0,1.32151279]
[1693794843104,0.00458394,25925.0,25924.0,1.32199279]
[1693794843300,0.00458394,25925.0,25924.0,1.13816179]
[1693794843690,0.00458394,25925.0,25924.0,1.13810179]
[1693794844063,0.00458394,25925.0,25924.0,1.32279293]
[1693794844473,0.00458394,25925.0,25924.0,1.13768179]
[1693794844658,0.00458394,25925.0,25924.0,1.13714179]
[1693794844857,0.00458394,25925.0,25924.0,1.13750179]
[1693794845052,0.00458394,25925.0,25924.0,1.13684179]
[1693794845258,0.00458394,25925.0,25924.0,1.13678179]
[1693794845788,0.00458394,25925.0,25924.0,1.13684179]
[1693794846161,0.00458394,25925.0,25924.0,1.13852179]
[1693794846382,0.00458394,25925.0,25924.0,1.13786179]
[1693794846613,0.00458394,25925.0,25924.0,1.13360179]
[1693794847010,0.00458394,25925.0,25924.0,1.13366179]
[1693794847335,0.00458394,25925.0,25924.0,1.13336179]
[1693794847537,0.00458394,25925.0,25924.0,1.13330179]
[1693794847681,0.00458394,25925.0,25924.0,1.62998179]
[1693794847878,0.00458394,25925.0,25924.0,1.40337177]
[1693794848079,0.00458394,25925.0,25924.0,1.40331177]
[1693794848283,0.00458394,25925.0,25924.0,1.40493177]
[1693794848528,0.00458394,25925.0,25924.0,1.40487177]
[1693794848702,0.00458394,25925.0,25924.0,1.53555177]
[1693794848904,0.00458394,25925.0,25924.0,1.93415855]
[1693794849103,0.00458394,25925.0,25924.0,1.93847855]
[1693794849371,0.00458394,25925.0,25924.0,1.93955855]
[1693794849569,0.00458394,25925.0,25924.0,1.94039855]
[1693794849751,0.00458394,25925.0,25924.0,1.94135855]
[1693794849962,0.00458394,25925.0,25924.0,1.94003855]
[1693794850157,0.00458394,25925.0,25924.0,1.94567855]
[1693794850360,0.00458394,25925.0,25924.0,1.95143855]
[1693794850564,0.00458394,25925.0,25924.0,2.65071855]
[1693794850725,0.00458394,25925.0,25924.0,2.65107855]
[1693794850929,0.00458394,25925.0,25924.0,2.92319457]
[1693794851122,0.00458394,25925.0,25924.0,2.92823457]
[1693794851305,0.00458394,25925.0,25924.0,2.93323457]
[1693794851515,0.00458394,25925.0,25924.0,2.93527457]
[1693794851736,0.00458394,25925.0,25924.0,2.94055457]
[1693794851936,0.00458394,25925.0,25924.0,2.95231457]
[1693794852192,0.00458394,25925.0,25924.0,2.95243457]
[1693794852557,0.00458394,25925.0,25924.0,2.94991457]
[1693794852755,0.00458394,25925.0,25924.0,2.96407457]
[1693794852960,0.00458394,25925.0,25924.0,2.95555457]
[1693794853133,0.00458394,25925.0,25924.0,2.76504178]
[1693794853361,0.00458394,25925.0,25924.0,3.03657928]
[1693794853515,0.00458394,25925.0,25924.0,3.13049037]
[1693794853720,0.00458394,25925.0,25924.0,3.03699928]
[1693794853896,1e-08,25925.0,25924.0,3.05031928]
[1693794854102,1e-08,25925.0,25924.0,3.12838675]
[1693794854473,1e-08,25925.0,25924.0,3.04923928]
[1693794854679,1e-08,25925.0,25924.0,3.07315928]
[1693794854852,1e-08,25925.0,25924.0,3.04815928]
[1693794855085,1e-08,25925.0,25924.0,3.07315928]
[1693794855293,0.0198,25927.0,25926.0,1.18]
[1693794855294,1e-08,25927.0,25926.0,1.18]
[1693794855513,1e-08,25927.0,25926.0,3.35812436]
[1693794855720,1e-08,25927.0,25926.0,4.58437891]
[1693794855926,1e-08,25927.0,25926.0,4.60975891]
[1693794856130,1e-08,25927.0,25926.0,4.62667891]
[1693794856330,1e-08,25927.0,25926.0,4.61731891]
[1693794856594,1e-08,25927.0,25926.0,4.65727891]
[1693794856807,1e-08,25927.0,25926.0,4.56565891]
[1693794857020,1e-08,25927.0,25926.0,4.54459891]
[1693794857223,1e-08,25927.0,25926.0,4.54567891]
[1693794857434,1e-08,25927.0,25926.0,4.52587891]
[1693794857643,1e-08,25927.0,25926.0,4.57965891]
[1693794857843,1e-08,25927.0,25926.0,4.59297891]
[1693794858024,1e-08,25927.0,25926.0,4.54851123]
[1693794858261,1e-08,25927.0,25926.0,4.58233123]
[1693794858465,1e-08,25927.0,25926.0,4.57927123]
[1693794858670,1e-08,25927.0,25926.0,4.07281168]
[1693794858904,1e-08,25927.0,25926.0,4.07245168]
[1693794859113,0.0198,25929.0,25928.0,0.13335232]
[1693794859315,0.0198,25929.0,25928.0,2.13979074]
[1693794859538,0.0198,25929.0,25928.0,2.77757745]
[1693794859743,0.0198,25929.0,25928.0,3.35739213]
[1693794859950,0.0198,25929.0,25928.0,3.38475213]
[1693794860170,0.0198,25929.0,25928.0,3.38079213]
[1693794860370,0.0198,25929.0,25928.0,3.38115213]
[1693794860551,0.0198,25929.0,25928.0,3.40067213]
[1693794860750,0.0198,25929.0,25928.0,3.45085213]
[1693794860953,0.0198,25929.0,25928.0,3.45175213]
[1693794861155,0.0198,25929.0,25928.0,3.45283213]
[1693794861363,0.0198,25932.0,25931.0,0.13335232]
[1693794861572,0.0198,25932.0,25931.0,1.99789811]
[1693794861777,0.0198,25932.0,25931.0,2.81709863]
[1693794861980,0.0198,25932.0,25931.0,3.06384186]
[1693794862184,0.0198,25932.0,25931.0,3.06816186]
[1693794862808,0.0198,25932.0,25931.0,3.06870186]
[1693794863008,0.0198,25932.0,25931.0,3.34982482]
[1693794863208,0.0198,25932.0,25931.0,3.37170911]
[1693794863415,0.0198,25932.0,25931.0,3.38088911]
[1693794863626,0.0198,25932.0,25931.0,3.41182911]
[1693794863827,0.0198,25932.0,25931.0,3.40786911]
[1693794864037,0.0198,25932.0,25931.0,3.54170615]
[1693794864247,0.0198,25932.0,25931.0,3.56616615]
[1693794864383,0.0198,25932.0,25931.0,3.56652615]
[1693794864584,0.0198,25932.0,25931.0,3.56616615]
[1693794864805,0.0198,25932.0,25931.0,3.56526615]
[1693794865035,0.0198,25932.0,25931.0,3.56742615]
[1693794865277,0.0198,25932.0,25931.0,3.56706615]
[1693794865486,0.0198,25932.0,25931.0,3.56778615]
[1693794865684,0.0198,25932.0,25931.0,3.56904615]
[1693794865803,0.0198,25932.0,25931.0,3.57012615]
[1693794866002,0.0198,25932.0,25931.0,3.57030615]
[1693794866367,0.0198,25932.0,25931.0,3.56958615]
[1693794866572,0.0198,25932.0,25931.0,3.57066615]
[1693794866767,0.0198,25932.0,25931.0,3.57138615]
[1693794866992,0.0198,25932.0,25931.0,3.57156615]
[1693794867330,0.0198,25932.0,25931.0,3.57570615]
[1693794867531,0.0198,25932.0,25931.0,3.57498615]
[1693794867757,0.0198,25932.0,25931.0,3.29260319]
[1693794867934,0.0198,25932.0,25931.0,3.29314319]
[1693794868332,0.0198,25932.0,25931.0,3.29332319]
[1693794868535,0.0198,25932.0,25931.0,3.29440319]
[1693794868743,0.0198,25932.0,25931.0,3.29368319]
[1693794868945,0.0198,25932.0,25931.0,3.29422319]
[1693794869145,0.0198,25932.0,25931.0,3.29458319]
[1693794869511,0.0198,25932.0,25931.0,3.29170319]
[1693794869714,0.0198,25932.0,25931.0,3.32175521]
[1693794869893,0.0198,25932.0,25931.0,3.32121521]
[1693794870047,0.0198,25932.0,25931.0,3.32301521]
[1693794870250,0.0198,25932.0,25931.0,3.33492823]
[1693794870459,0.0198,25932.0,25931.0,3.38729199]
[1693794871022,0.0198,25932.0,25931.0,3.38747199]
[1693794871304,0.0198,25932.0,25931.0,3.39143199]
[1693794872120,0.0198,25932.0,25931.0,3.39215199]
[1693794872537,0.0198,25932.0,25931.0,3.39269199]
[1693794872764,0.0198,25932.0,25931.0,3.39287199]
[1693794872931,0.0198,25932.0,25931.0,3.38909199]
[1693794873276,0.0198,25932.0,25931.0,3.39017199]
[1693794873476,0.0198,25932.0,25931.0,3.38300017]
[1693794873703,0.0198,25932.0,25931.0,3.38750017]
[1693794873924,0.0198,25932.0,25931.0,3.38786017]
[1693794874301,0.0198,25932.0,25931.0,3.38768017]
[1693794874505,0.0198,25932.0,25931.0,3.47126017]
[1693794874707,0.0198,25932.0,25931.0,3.50618017]
[1693794874906,0.0198,25932.0,25931.0,3.50690017]
[1693794875107,0.0198,25932.0,25931.0,3.50726017]
[1693794875311,0.0198,25932.0,25931.0,3.50780017]
[1693794875511,0.0198,25932.0,25931.0,3.50762017]
[1693794875717,0.0198,25932.0,25931.0,3.50510017]
[1693794876080,0.0198,25932.0,25931.0,3.50240017]
[1693794876290,0.0198,25932.0,25931.0,3.50312017]
[1693794876731,0.0198,25932.0,25931.0,3.50114017]
[1693794877088,0.0198,25932.0,25931.0,3.50132017]
[1693794877287,0.0198,25932.0,25931.0,3.50150017]
[1693794877490,0.0198,25932.0,25931.0,3.50096017]
[1693794877656,0.0198,25932.0,25931.0,3.49736017]
[1693794877868,0.0198,25932.0,25931.0,3.49574017]
[1693794878083,0.0198,25932.0,25931.0,3.49628017]
[1693794878281,0.0198,25932.0,25931.0,3.49610017]
[1693794878474,0.0198,25932.0,25931.0,3.49826017]
[1693794878680,0.0198,25932.0,25931.0,3.50456017]
[1693794878897,0.17878012,25935.0,25934.0,0.07700936]
[1693794879130,0.17878012,25935.0,25934.0,1.9843988]
[1693794879336,0.1778,25935.0,25934.0,2.91598228]
[1693794879530,0.1778,25935.0,25934.0,2.93556659]
[1693794879810,0.1778,25935.0,25934.0,2.93448659]
[1693794879953,0.1778,25935.0,25934.0,3.07992504]
[1693794880159,0.1778,25935.0,25934.0,2.96751533]
[1693794880362,0.1778,25935.0,25934.0,2.96799533]
[1693794880580,0.1778,25935.0,25934.0,3.26291856]
[1693794880581,0.0198,25935.0,25934.0,3.26291856]
[1693794880774,0.0198,25935.0,25934.0,3.12136179]
[1693794880945,0.0198,25935.0,25934.0,3.11992179]
[1693794881325,0.0198,25935.0,25934.0,3.12172179]
[1693794881538,0.0198,25935.0,25934.0,3.07184179]
[1693794881716,0.0198,25935.0,25934.0,3.07148179]
[1693794881960,0.0198,25935.0,25934.0,3.09672179]
[1693794882162,0.0198,25935.0,25934.0,3.09684179]
[1693794882338,0.0198,25935.0,25934.0,3.09888179]
[1693794882564,0.0198,25935.0,25934.0,3.09912179]
[1693794882743,0.0198,25935.0,25934.0,3.09648179]
[1693794882978,0.0198,25935.0,25934.0,3.12160179]
[1693794883190,0.0198,25935.0,25934.0,3.12364179]
[1693794883365,0.0198,25935.0,25934.0,2.89754561]
[1693794883607,0.0198,25935.0,25934.0,2.89154561]
[1693794883778,0.0198,25935.0,25934.0,2.89106561]
[1693794884007,0.222,25939.0,25938.0,0.05700936]
[1693794884183,0.222,25939.0,25938.0,0.14040936]
[1693794884401,0.0198,25939.0,25938.0,0.56040936]
[1693794884624,0.0198,25939.0,25938.0,0.56016936]
[1693794884899,0.0198,25939.0,25938.0,0.55974936]
[1693794885123,0.0198,25939.0,25938.0,0.55944936]
[1693794885398,0.0198,25939.0,25938.0,0.55932936]
[1693794885621,0.0198,25939.0,25938.0,0.57766936]
[1693794885754,0.0198,25939.0,25938.0,0.63700936]
[1693794886162,0.0198,25939.0,25938.0,0.63730936]
[1693794886505,0.0198,25939.0,25938.0,0.65954936]
[1693794886711,0.0198,25939.0,25938.0,0.65942936]
[1693794886928,0.0198,25939.0,25938.0,0.65918936]
[1693794887126,0.0198,25939.0,25938.0,0.65972936]
[1693794887329,0.0198,25939.0,25938.0,0.65816936]
[1693794887526,0.0198,25939.0,25938.0,0.65876936]
[1693794887727,0.0198,25939.0,25938.0,0.65834936]
[1693794887902,0.0198,25939.0,25938.0,0.65792936]
[1693794888106,0.0198,25939.0,25938.0,0.65804936]
[1693794888306,0.0198,25939.0,25938.0,0.81833761]
[1693794888487,0.0198,25939.0,25938.0,0.81815761]
[1693794888695,0.0198,25939.0,25938.0,0.81749761]
[1693794888891,0.0198,25939.0,25938.0,0.81737761]
[1693794889095,0.0198,25939.0,25938.0,1.39298439]
[1693794889478,0.0198,25939.0,25938.0,1.41326439]
[1693794889678,0.0198,25939.0,25938.0,1.5043708]
[1693794889808,0.0198,25939.0,25938.0,1.5041308]
[1693794890016,0.0198,25939.0,25938.0,1.5020908]
[1693794890210,0.0198,25939.0,25938.0,1.4798508]
[1693794890458,0.0198,25939.0,25938.0,1.4514908]
[1693794890677,0.0198,25939.0,25938.0,1.4734908]
[1693794890885,0.0198,25939.0,25938.0,1.4944108]
[1693794891059,0.0198,25939.0,25938.0,1.4942908]
[1693794891270,0.0198,25939.0,25938.0,1.4690508]
[1693794891466,0.0198,25939.0,25938.0,1.4673708]
[1693794891688,0.0198,25939.0,25938.0,1.4923708]
[1693794891884,0.0198,25939.0,25938.0,1.63293042]
[1693794892084,0.0198,25939.0,25938.0,1.95044326]
[1693794892260,0.0198,25939.0,25938.0,1.95032326]
[1693794892442,0.0198,25939.0,25938.0,1.94108326]
[1693794892642,0.0198,25939.0,25938.0,1.93568326]
[1693794892931,0.0198,25939.0,25938.0,1.93532326]
[1693794893109,0.0198,25939.0,25938.0,1.93592326]
[1693794893313,0.0198,25939.0,25938.0,1.95677374]
[1693794893519,0.0198,25939.0,25938.0,1.95581374]
[1693794893671,0.0198,25939.0,25938.0,1.99962695]
[1693794893877,0.0198,25939.0,25938.0,1.99974695]
[1693794894087,0.0198,25939.0,25938.0,2.00202695]
[1693794894294,0.0198,25939.0,25938.0,2.00274695]
[1693794894521,0.0198,25939.0,25938.0,2.04932016]
[1693794894723,0.0198,25939.0,25938.0,2.23244257]
[1693794894933,0.0198,25939.0,25938.0,2.26419421]
[1693794895130,0.0198,25939.0,25938.0,2.0939118]
[1693794895310,0.0198,25939.0,25938.0,2.1011118]
[1693794895526,0.0198,25939.0,25938.0,2.0911518]
[1693794895749,0.0198,25939.0,25938.0,2.2816318]
[1693794895932,0.0198,25939.0,25938.0,2.9873918]
[1693794896132,0.0198,25939.0,25938.0,2.9878718]
[1693794896337,0.0198,25939.0,25938.0,2.9870318]
[1693794896512,0.0198,25939.0,25938.0,2.75800576]
[1693794896712,0.0198,25939.0,25938.0,2.75020576]
[1693794896913,0.0198,25939.0,25938.0,2.74840576]
[1693794897134,0.0198,25939.0,25938.0,2.74636576]
[1693794897344,0.0198,25939.0,25938.0,2.73244576]
[1693794897694,0.0198,25939.0,25938.0,2.03256576]
[1693794897816,0.0198,25939.0,25938.0,2.03292576]
[1693794898020,0.0198,25939.0,25938.0,2.03304576]
[1693794898224,0.0198,25939.0,25938.0,2.03400576]
[1693794898673,0.0198,25939.0,25938.0,2.03436576]
[1693794899321,0.0198,25939.0,25938.0,2.03556576]
[1693794899439,0.0198,25939.0,25938.0,2.03484576]
[1693794899639,0.0198,25939.0,25938.0,2.31086872]
[1693794900101,0.0198,25939.0,25938.0,2.31146872]
[1693794900302,0.0198,25939.0,25938.0,2.31110872]
[1693794900484,0.0198,25939.0,25938.0,3.01266872]
[1693794900686,0.0198,25939.0,25938.0,3.01254872]
[1693794900906,0.0198,25939.0,25938.0,3.01230872]
[1693794901421,0.0198,25939.0,25938.0,3.01482872]
[1693794901622,0.0198,25939.0,25938.0,3.01386872]
[1693794901870,0.0198,25939.0,25938.0,3.01182872]
[1693794902079,0.0198,25939.0,25938.0,2.31170872]
[1693794902279,0.0198,25939.0,25938.0,2.31182872]
[1693794902576,0.0198,25939.0,25938.0,2.32118872]
[1693794902938,0.0198,25939.0,25938.0,2.04456576]
[1693794903357,0.0198,25939.0,25938.0,2.04444576]
[1693794903588,0.0198,25939.0,25938.0,3.02111591]
[1693794903793,0.0198,25939.0,25938.0,3.03995591]
[1693794903964,0.0198,25939.0,25938.0,3.03179591]
[1693794904172,0.0198,25939.0,25938.0,3.02807591]
[1693794904370,0.0198,25939.0,25938.0,3.02579591]
[1693794904610,0.0198,25939.0,25938.0,3.02471591]
[1693794904771,0.0198,25939.0,25938.0,3.00615591]
[1693794905126,0.0198,25939.0,25938.0,3.00459591]
[1693794905479,0.0198,25939.0,25938.0,3.00471591]
[1693794905880,0.0198,25939.0,25938.0,3.00483591]
[1693794906082,0.0198,25939.0,25938.0,3.00447591]
[1693794906290,0.0198,25939.0,25938.0,3.00941307]
[1693794906485,0.0198,25939.0,25938.0,3.00821307]
[1693794906686,0.0198,25939.0,25938.0,2.30245307]
[1693794906962,0.0198,25939.0,25938.0,2.30197307]
[1693794907160,0.0198,25939.0,25938.0,2.30173307]
[1693794907293,0.0198,25939.0,25938.0,2.30197307]